bitfinex/quotes_SOLUSD_20250717
["timestamp","ask_amount","ask_price","bid_price","bid_amount"]
[1752764979296,10.71451628,173.67,173.66,0.06]
[1752764979919,16.47256315,173.67,173.66,0.06]
[1752764980114,6.42804687,173.67,173.66,0.06]
[1752764980323,16.47256315,173.67,173.66,0.06]
[1752764981223,16.47256315,173.67,173.56,27.5034]
[1752764981224,10.04451628,173.64,173.59,10.04451628]
[1752764981395,0.68,173.63,173.59,10.04451628]
[1752764981602,0.68,173.66,173.62,10.04451628]
[1752764981807,0.68,173.66,173.63,10.04451628]
[1752764982008,5.75771533,173.68,173.65,10.04451628]
[1752764982410,0.68,173.67,173.59,0.43]
[1752764982612,0.68,173.67,173.64,10.04451628]
[1752764983596,0.68,173.66,173.6,0.43]
[1752764983920,5.75871004,173.65,173.61,10.04451628]
[1752764984228,6.43871004,173.65,173.58,30.68]
[1752764984432,6.43871004,173.65,173.61,10.04451628]
[1752764984925,0.68,173.64,173.58,30.68]
[1752764985224,0.68,173.64,173.56,2.07956962]
[1752764985225,0.68,173.64,173.56,32.1634]
[1752764985424,5.75871004,173.65,173.63,10.04451628]
[1752764985628,5.75871004,173.65,173.62,10.04451628]
[1752764985804,0.68,173.64,173.6,10.04451628]
[1752764986007,5.75937338,173.63,173.6,10.04451628]
[1752764986203,5.75937338,173.63,173.56,58.1634]
[1752764986204,0.68,173.62,173.58,10.04451628]
[1752764986422,0.68,173.61,173.56,30.66]
[1752764986634,0.68,173.6,173.52,1.5964]
[1752764986806,0.68,173.6,173.53,0.43]
[1752764987139,10.72451628,173.62,173.57,10.04451628]
[1752764987332,10.04451628,173.6,173.52,1.5964]
[1752764987505,0.68,173.59,173.52,1.5964]
[1752764987710,0.68,173.59,173.52,2.0264]
[1752764987923,16.78468397,173.62,173.56,10.04451628]
[1752764988136,15.80488494,173.6,173.52,2.0264]
[1752764988305,0.68,173.59,173.52,0.43]
[1752764988641,20.16129031,173.6,173.52,0.43]
[1752764988919,10.72451628,173.58,173.53,10.04451628]
[1752764989123,10.04451628,173.57,173.51,31.0]
[1752764989332,0.68,173.56,173.51,31.0]
[1752764989640,10.04451628,173.54,173.49,10.04451628]
[1752764989804,10.04451628,173.54,173.48,0.2]
[1752764989805,0.68,173.57,173.53,10.04451628]
[1752764990007,5.76169624,173.56,173.53,10.04451628]
[1752764990224,5.76134536,173.58,173.55,10.04451628]
[1752764990523,28.79310366,173.66,173.53,0.43]
[1752764990524,5.7597051,173.62,173.57,10.04451628]
[1752764990708,5.7597051,173.62,173.58,10.04451628]
[1752764990910,5.7597051,173.62,173.57,0.43]
[1752764991122,0.68,173.61,173.54,31.1]
[1752764991329,0.68,173.61,173.56,10.04451628]
[1752764991542,0.68,173.61,173.57,10.04451628]
[1752764991846,10.72451628,173.61,173.54,31.1]
[1752764992008,5.76036866,173.6,173.56,10.04451628]
[1752764992320,5.75937338,173.63,173.59,10.04451628]
[1752764992732,5.75911095,173.64,173.62,10.04451628]
[1752764992933,5.75870722,173.66,173.63,10.04451628]
[1752764993109,5.75771533,173.68,173.62,0.43]
[1752764993315,5.75771533,173.68,173.63,10.04451628]
[1752764993518,6.43771533,173.68,173.64,10.04451628]
[1752764993912,16.48223161,173.68,173.63,10.04451628]
[1752764994539,0.68,173.67,173.63,10.04451628]
[1752764994735,5.75771533,173.68,173.64,10.04451628]
[1752764994914,5.75771533,173.68,173.65,10.04451628]
[1752764995234,5.75744918,173.69,173.67,10.04451628]
[1752764995736,5.75744918,173.69,173.63,0.43]
[1752764996132,33.16597656,173.72,173.67,10.04451628]
[1752764996133,5.75672097,173.71,173.67,10.04451628]
[1752764996327,6.43672097,173.71,173.68,10.04451628]
[1752764996546,5.75672097,173.71,173.69,10.04451628]
[1752764996717,5.75672097,173.71,173.68,10.04451628]
[1752764996920,6.43672097,173.71,173.68,10.04451628]
[1752764997433,6.43672097,173.71,173.64,0.43]
[1752764997714,6.43672097,173.71,173.67,10.04451628]
[1752764998608,5.75672097,173.71,173.7,10.04451628]
[1752764999038,0.03,173.73,173.7,10.04451628]
[1752764999341,0.03,173.73,173.72,10.04451628]
[1752764999719,5.78605825,173.73,173.72,10.04451628]
[1752765000024,0.03,173.73,173.72,10.04451628]
[1752765000427,0.03,173.73,173.72,10.47451628]
[1752765001139,0.03,173.73,173.72,10.04451628]
[1752765001340,0.03,173.73,173.72,10.47451628]
[1752765001543,0.03,173.73,173.72,0.43]
[1752765001743,0.03,173.73,173.72,10.04451628]
[1752765002046,0.03,173.73,173.72,10.47451628]
[1752765003649,0.03,173.73,173.72,26.43]
[1752765003941,0.71,173.73,173.67,0.43]
[1752765004147,5.75638959,173.72,173.71,10.04451628]
[1752765004328,5.75638959,173.72,173.7,10.04451628]
[1752765005950,5.75638959,173.72,173.68,41.06451628]
[1752765006129,6.43638959,173.72,173.68,31.02]
[1752765006324,0.03,173.73,173.62,6.2399]
[1752765006325,10.72451628,173.71,173.62,8.1788]
[1752765006630,0.68,173.7,173.65,10.04451628]
[1752765006828,0.68,173.69,173.65,10.04451628]
[1752765007053,0.68,173.68,173.65,10.04451628]
[1752765007223,0.68,173.68,173.63,30.96]
[1752765007534,0.68,173.68,173.65,10.04451628]
[1752765007939,10.04451628,173.7,173.63,30.96]
[1752765007940,0.68,173.7,173.66,10.04451628]
[1752765008135,0.68,173.72,173.68,10.04451628]
[1752765008343,5.75672097,173.71,173.68,10.04451628]
[1752765008653,0.68,173.7,173.65,10.04451628]
[1752765008825,10.72451628,173.69,173.64,10.04451628]
[1752765009024,10.04451628,173.67,173.63,30.96]
[1752765009236,10.72451628,173.66,173.59,30.98]
[1752765009448,0.68,173.66,173.59,30.98]
[1752765009657,10.04451628,173.65,173.59,30.98]
[1752765009834,0.68,173.64,173.6,10.04451628]
[1752765010034,48.93212824,173.71,173.55,1.00620282]
[1752765010035,0.68,173.69,173.62,10.04451628]
[1752765010252,10.72451628,173.69,173.64,10.04451628]
[1752765010434,30.87651995,173.68,173.57,57.41]
[1752765010639,10.04451628,173.66,173.61,10.04451628]
[1752765010952,10.73451628,173.65,173.57,57.41]
[1752765011128,0.69,173.65,173.6,10.04451628]
[1752765011453,10.04451628,173.67,173.62,10.04451628]
[1752765011759,30.88651995,173.68,173.63,10.04451628]
[1752765012056,0.69,173.67,173.63,10.04451628]
[1752765012232,10.73451628,173.66,173.57,57.41]
[1752765012430,5.75904169,173.64,173.6,10.04451628]
[1752765012753,5.75904169,173.64,173.57,57.41]
[1752765012754,6.44904169,173.64,173.61,10.04451628]
[1752765012950,5.75904169,173.64,173.63,10.04451628]
[1752765013155,5.75904169,173.64,173.62,10.04451628]
[1752765013336,5.75904169,173.64,173.59,0.43]
[1752765013540,5.75904169,173.64,173.62,10.04451628]
[1752765014545,10.73451628,173.68,173.63,10.04451628]
[1752765014730,6.44804687,173.67,173.64,10.04451628]
[1752765014931,5.75804687,173.67,173.62,0.43]
[1752765015135,5.75804687,173.67,173.65,10.04451628]
[1752765016072,15.08152042,173.72,173.66,10.04451628]
[1752765016282,15.08152042,173.72,173.69,10.04451628]
[1752765016448,6.44672097,173.71,173.68,10.04451628]
[1752765016646,0.69,173.7,173.66,10.04451628]
[1752765016854,0.69,173.7,173.62,32.9807]
[1752765017258,0.69,173.7,173.66,10.04451628]
[1752765017558,0.69,173.7,173.65,0.06]
[1752765017559,10.04451628,173.68,173.65,0.06]
[1752765017751,0.69,173.67,173.65,0.06]
[1752765017952,10.04451628,173.66,173.65,0.06]
[1752765018163,10.04451628,173.66,173.58,31.04]
[1752765018384,10.04451628,173.63,173.58,41.02451628]
[1752765018566,0.69,173.63,173.59,10.04451628]
[1752765018745,0.69,173.62,173.58,41.02451628]
[1752765018949,0.69,173.61,173.58,30.98]
[1752765019266,10.04451628,173.59,173.52,10.04451628]
[1752765019468,10.73451628,173.58,173.49,31.41]
[1752765019765,0.69,173.58,173.53,10.04451628]
[1752765020275,36.94132989,173.64,173.5,0.43]
[1752765020276,0.69,173.62,173.57,10.04451628]
[1752765020481,6.45003686,173.61,173.58,10.04451628]
[1752765020651,0.69,173.6,173.54,31.41]
[1752765020850,0.69,173.6,173.56,10.04451628]
[1752765021049,0.69,173.6,173.55,10.04451628]
[1752765021253,10.73451628,173.59,173.54,41.02451628]
[1752765021680,0.69,173.58,173.54,30.98]
[1752765021857,0.69,173.57,173.51,26.0]
[1752765022377,0.69,173.57,173.52,10.04451628]
[1752765022682,0.69,173.57,173.5,41.00451628]
[1752765022683,10.04451628,173.55,173.5,41.00451628]
[1752765022848,0.69,173.54,173.5,41.00451628]
[1752765023279,20.16593684,173.56,173.51,10.04451628]
[1752765023444,20.16593684,173.56,173.5,41.00451628]
[1752765023445,0.69,173.55,173.5,41.00451628]
[1752765023780,0.69,173.54,173.5,41.00451628]
[1752765024356,5.76169624,173.56,173.51,10.04451628]
[1752765024562,5.76143681,173.57,173.55,10.04451628]
[1752765024757,5.76143681,173.57,173.52,0.43]
[1752765024963,0.69,173.56,173.53,10.04451628]
[1752765025372,0.69,173.56,173.5,30.96]
[1752765025759,0.69,173.56,173.53,10.04451628]
[1752765025959,10.73451628,173.56,173.51,10.04451628]
[1752765026274,0.69,173.55,173.5,10.04451628]
[1752765026475,0.69,173.54,173.51,10.04451628]
[1752765026780,5.76269232,173.53,173.48,31.87]
[1752765026977,15.8072086,173.53,173.48,10.04451628]
[1752765027300,10.04451628,173.51,173.47,0.2]
[1752765027579,10.73451628,173.52,173.47,10.24451628]
[1752765027760,20.16942314,173.53,173.48,10.04451628]
[1752765027957,20.16942314,173.53,173.47,0.63]
[1752765027958,5.76269232,173.53,173.5,10.04451628]
[1752765028152,5.76269232,173.53,173.51,10.04451628]
[1752765028351,5.76202823,173.55,173.52,10.04451628]
[1752765028557,5.76202823,173.55,173.48,0.57643532]
[1752765028558,31.54,173.58,173.54,10.04451628]
[1752765028757,22.12085726,173.62,173.56,10.04451628]
[1752765028981,20.49805726,173.62,173.58,10.04451628]
[1752765029150,5.76003686,173.61,173.54,0.43]
[1752765029351,0.69,173.64,173.54,31.54]
[1752765029674,5.75937338,173.63,173.61,10.04451628]
[1752765030354,6.44937338,173.63,173.57,0.43]
[1752765030666,6.44937338,173.63,173.6,10.04451628]
[1752765031886,5.75937338,173.63,173.62,10.04451628]
[1752765032180,5.75837844,173.66,173.62,10.04451628]
[1752765032352,5.75837844,173.66,173.63,10.04451628]
[1752765032557,5.75798578,173.68,173.59,31.54]
[1752765032777,5.75705238,173.7,173.67,10.04451628]
[1752765032976,5.75705238,173.7,173.63,0.43]
[1752765032977,5.75705238,173.7,173.68,10.04451628]
[1752765033957,0.03,173.73,173.69,10.04451628]
[1752765034077,5.75646655,173.72,173.65,32.545871]
[1752765034292,5.75646655,173.72,173.71,10.04451628]
[1752765034489,5.75646655,173.72,173.7,10.04451628]
[1752765034877,0.69,173.72,173.65,32.545871]
[1752765035100,0.69,173.72,173.7,10.04451628]
[1752765035596,0.69,173.71,173.69,10.04451628]
[1752765035962,20.17620387,173.73,173.69,10.04451628]
[1752765036168,0.69,173.72,173.69,10.04451628]
[1752765036471,0.69,173.71,173.63,0.57593733]
[1752765036685,16.78468397,173.7,173.55,6.1085]
[1752765037007,16.78468397,173.68,173.56,58.25]
[1752765037308,0.69,173.67,173.6,10.04451628]
[1752765037485,10.04451628,173.66,173.61,10.04451628]
[1752765037672,0.69,173.65,173.61,10.04451628]
[1752765037877,10.73451628,173.66,173.61,10.04451628]
[1752765038069,0.69,173.65,173.61,10.04451628]
[1752765038475,0.69,173.65,173.62,10.04451628]
[1752765038892,6.44904169,173.64,173.58,0.43]
[1752765039096,6.44904169,173.64,173.6,10.04451628]
[1752765039414,6.44904169,173.64,173.57,26.0]
[1752765039787,16.49355797,173.64,173.61,0.06]
[1752765040107,0.69,173.63,173.61,0.06]
[1752765040399,10.04451628,173.62,173.61,0.06]
[1752765040706,10.72451628,173.62,173.55,10.04451628]
[1752765041010,10.04451628,173.6,173.53,32.44]
[1752765041308,0.68,173.59,173.54,10.04451628]
[1752765041617,0.68,173.58,173.55,10.04451628]
[1752765041778,16.48455314,173.61,173.56,10.04451628]
[1752765041997,5.76003686,173.61,173.57,10.04451628]
[1752765042293,5.75937338,173.63,173.58,0.43]
[1752765042503,5.75904237,173.64,173.62,10.04451628]
[1752765042678,5.75904237,173.64,173.63,10.04451628]
[1752765042878,0.03,173.65,173.62,10.04451628]
[1752765043178,10.72451628,173.64,173.56,26.43]
[1752765043393,10.72451628,173.64,173.59,10.04451628]
[1752765043587,0.68,173.63,173.56,26.43]
[1752765043908,0.68,173.63,173.59,10.04451628]
[1752765044377,0.03,173.65,173.61,10.04451628]
[1752765044576,0.03,173.65,173.56,26.43]
[1752765044788,10.72451628,173.64,173.58,10.04451628]
[1752765044988,5.75937338,173.63,173.59,10.04451628]
[1752765045198,20.83780683,173.63,173.56,26.0]
[1752765045405,5.75937338,173.63,173.59,10.04451628]
[1752765045618,5.75937338,173.63,173.6,10.04451628]
[1752765045779,5.75937338,173.63,173.61,10.04451628]
[1752765045975,5.75937338,173.63,173.62,10.04451628]
[1752765046211,5.75937338,173.63,173.6,0.43]
[1752765046393,5.75937338,173.63,173.62,10.04451628]
[1752765046598,5.78900591,173.65,173.62,10.04451628]
[1752765047098,0.71,173.65,173.61,10.04451628]
[1752765047309,0.71,173.65,173.6,10.04451628]
[1752765047310,0.68,173.64,173.6,10.04451628]
[1752765047675,0.68,173.64,173.61,10.04451628]
[1752765047881,0.68,173.64,173.59,32.52]
[1752765048080,0.68,173.64,173.6,10.04451628]
[1752765048304,0.68,173.64,173.61,10.04451628]
[1752765048610,0.03,173.65,173.63,10.04451628]
[1752765048789,0.03,173.65,173.64,10.04451628]
[1752765048988,0.03,173.65,173.62,10.04451628]
[1752765049302,0.03,173.65,173.6,0.43]
[1752765049490,0.03,173.65,173.63,10.04451628]
[1752765050202,0.03,173.65,173.6,0.43]
[1752765050203,0.03,173.65,173.64,10.04451628]
[1752765050514,0.03,173.65,173.6,0.43]
[1752765050681,0.03,173.65,173.64,10.04451628]
[1752765052580,0.03,173.65,173.64,10.47451628]
[1752765053106,0.03,173.65,173.64,20.51903256]
[1752765053290,0.03,173.65,173.64,52.91903256]
[1752765053605,0.03,173.65,173.64,42.87451628]
[1752765053932,0.03,173.65,173.62,26.43]
[1752765054129,0.03,173.65,173.64,10.04451628]
[1752765054787,0.03,173.65,173.64,10.47451628]
[1752765054989,0.03,173.65,173.62,26.0]
[1752765055208,0.03,173.65,173.63,32.68]
[1752765055414,0.03,173.65,173.64,10.04451628]
[1752765057301,0.03,173.65,173.63,32.68]
[1752765057302,0.71,173.65,173.61,42.66451628]
[1752765057506,10.75451628,173.65,173.61,32.62]
[1752765057698,0.68,173.64,173.61,32.62]
[1752765057895,0.68,173.64,173.61,42.66451628]
[1752765058424,0.68,173.63,173.59,42.64451628]
[1752765058722,0.68,173.63,173.59,32.6]
[1752765058933,0.68,173.62,173.59,32.6]
[1752765059119,30.20580659,173.6,173.53,0.43]
[1752765059305,5.76036866,173.6,173.58,10.04451628]
[1752765059510,5.75904169,173.64,173.59,10.04451628]
[1752765059810,5.75904169,173.64,173.61,10.04451628]
[1752765060197,5.78872311,173.65,173.63,10.04451628]
[1752765060401,0.03,173.65,173.64,10.04451628]
[1752765060612,0.03,173.65,173.64,10.47451628]
[1752765060822,0.03,173.65,173.64,26.43]
[1752765061026,0.03,173.65,173.64,36.47451628]
[1752765061206,0.03,173.65,173.64,36.04451628]
[1752765061530,0.03,173.65,173.62,33.64597051]
[1752765061705,0.03,173.65,173.64,10.04451628]
[1752765062050,0.03,173.65,173.62,32.64]
[1752765062195,0.68,173.64,173.57,0.43]
[1752765062397,0.68,173.64,173.58,32.7]
[1752765062622,10.04451628,173.63,173.58,32.7]
[1752765062819,10.72451628,173.62,173.58,32.7]
[1752765063023,0.68,173.61,173.58,32.7]
[1752765063233,5.76036866,173.6,173.56,10.04451628]
[1752765063414,6.44036866,173.6,173.56,10.04451628]
[1752765063726,6.44036866,173.6,173.55,32.82]
[1752765063727,6.44036866,173.6,173.59,0.06]
[1752765064718,5.76036866,173.6,173.59,0.06]
[1752765065226,20.15970024,173.62,173.59,0.06]
[1752765065609,20.83970024,173.62,173.59,0.06]
[1752765065921,20.83970024,173.62,173.59,10.10451628]
[1752765065922,5.7597051,173.62,173.59,10.10451628]
[1752765066115,5.7597051,173.62,173.6,10.04451628]
[1752765066315,5.7597051,173.62,173.59,0.06]
[1752765066818,0.03,173.64,173.61,10.04451628]
[1752765067130,0.03,173.64,173.63,10.04451628]
[1752765067324,0.03,173.64,173.59,0.63607005]
[1752765067325,0.71,173.64,173.59,0.06]
[1752765067503,0.71,173.64,173.6,42.90451628]
[1752765067702,0.68,173.63,173.6,10.04451628]
[1752765068133,0.68,173.63,173.59,32.9]
[1752765068336,0.03,173.64,173.62,10.04451628]
[1752765068632,0.03,173.64,173.63,10.04451628]
[1752765069025,0.03,173.64,173.59,34.8988]
[1752765069335,0.03,173.64,173.61,10.04451628]
[1752765069515,0.03,173.64,173.6,10.04451628]
[1752765069516,0.68,173.63,173.6,10.04451628]
[1752765069912,0.68,173.62,173.59,42.94451628]
[1752765070313,0.68,173.61,173.59,32.9]
[1752765070511,0.03,173.64,173.59,32.9]
[1752765070512,0.71,173.64,173.59,32.9]
[1752765070705,0.71,173.64,173.6,10.04451628]
[1752765070914,0.71,173.63,173.59,32.9]
[1752765071111,0.71,173.62,173.59,0.06]
[1752765071311,5.76003686,173.61,173.59,0.06]
[1752765071518,0.71,173.6,173.59,0.06]
[1752765072036,10.75451628,173.6,173.59,0.06]
[1752765073530,30.91580659,173.6,173.53,42.82451628]
[1752765073721,0.71,173.59,173.52,10.04451628]
[1752765073917,10.04451628,173.58,173.51,32.72]
[1752765074127,0.71,173.57,173.52,10.04451628]
[1752765074321,0.71,173.56,173.52,10.04451628]
[1752765074631,10.75451628,173.55,173.46,32.9314]
[1752765074930,10.04451628,173.52,173.47,10.04451628]
[1752765075131,0.71,173.51,173.47,10.04451628]
[1752765075437,0.71,173.5,173.47,10.04451628]
[1752765075616,5.76335657,173.51,173.47,10.04451628]
[1752765075822,0.71,173.5,173.47,10.04451628]
[1752765076032,0.71,173.49,173.45,10.04451628]
[1752765076226,0.71,173.49,173.44,32.66]
[1752765076529,20.17174801,173.51,173.48,10.04451628]
[1752765076530,5.76335657,173.51,173.48,10.04451628]
[1752765076715,8.6064,173.56,173.5,10.04451628]
[1752765076913,5.76202823,173.55,173.54,10.04451628]
[1752765077107,5.76136429,173.57,173.49,1.00640209]
[1752765077307,0.71,173.55,173.48,32.62]
[1752765077628,0.71,173.56,173.49,0.43]
[1752765077829,0.71,173.55,173.48,32.62]
[1752765078010,0.71,173.55,173.5,10.04451628]
[1752765078211,0.71,173.55,173.45,10.04451628]
[1752765078212,10.04451628,173.51,173.45,10.04451628]
[1752765078414,16.78468397,173.54,173.45,10.04451628]
[1752765078415,0.71,173.5,173.45,10.04451628]
[1752765078715,10.04451628,173.51,173.46,10.04451628]
[1752765079105,10.75451628,173.51,173.46,10.04451628]
[1752765079448,0.71,173.5,173.45,10.04451628]
[1752765079935,0.71,173.49,173.45,10.04451628]
[1752765080109,0.71,173.49,173.46,10.04451628]
[1752765080309,5.76368876,173.5,173.46,10.04451628]
[1752765080511,0.71,173.49,173.44,32.66]
[1752765080721,0.71,173.48,173.44,10.04451628]
[1752765081017,20.17291066,173.5,173.43,32.62]
[1752765081018,10.75451628,173.47,173.43,32.62]
[1752765081342,0.71,173.46,173.43,32.62]
[1752765081515,10.04451628,173.45,173.39,32.58]
[1752765081834,10.04451628,173.42,173.33,6.6746]
[1752765082021,10.04451628,173.41,173.35,26.0]
[1752765082216,10.75451628,173.42,173.36,10.04451628]
[1752765083415,5.7660151,173.43,173.38,10.04451628]
[1752765083743,10.04451628,173.47,173.41,10.04451628]
[1752765083952,10.04451628,173.47,173.39,0.43]
[1752765083953,5.7650341,173.46,173.39,0.43]
[1752765084149,6.4750341,173.46,173.39,0.43]
[1752765084314,10.75451628,173.45,173.4,10.04451628]
[1752765084635,5.7650341,173.46,173.4,0.43]
[1752765084932,5.7650341,173.46,173.39,32.56]
[1752765084933,5.7650341,173.46,173.41,10.04451628]
[1752765085154,6.4750341,173.46,173.39,32.56]
[1752765085514,0.71,173.46,173.42,10.04451628]
[1752765085714,10.04451628,173.48,173.43,10.04451628]
[1752765085915,10.75451628,173.48,173.43,10.04451628]
[1752765086137,0.71,173.47,173.43,10.04451628]
[1752765086625,153.86429267,173.49,173.44,10.04451628]
[1752765086626,163.90880895,173.49,173.44,10.04451628]
[1752765086921,0.71,173.48,173.44,10.04451628]
[1752765087134,163.90880895,173.49,173.43,10.04451628]
[1752765087334,0.71,173.47,173.39,32.56]
[1752765087516,10.75451628,173.47,173.42,10.04451628]
[1752765087841,15.81019893,173.44,173.39,10.04451628]
[1752765088016,10.75451628,173.43,173.37,42.52451628]
[1752765088215,10.75451628,173.42,173.37,42.52451628]
[1752765088416,0.71,173.41,173.37,42.52451628]
[1752765088950,10.04451628,173.42,173.37,32.48]
[1752765088951,0.71,173.4,173.37,32.48]
[1752765089133,0.71,173.4,173.37,42.52451628]
[1752765089741,6.47726301,173.4,173.37,10.04451628]
[1752765089945,6.47726301,173.4,173.36,0.06]
[1752765090253,6.47726301,173.4,173.37,10.04451628]
[1752765090458,0.71,173.39,173.36,0.06]
[1752765090638,0.71,173.39,173.36,10.10451628]
[1752765091254,0.71,173.38,173.36,0.06]
[1752765091466,0.71,173.39,173.36,10.10451628]
[1752765091658,6.4760151,173.43,173.38,10.04451628]
[1752765091855,6.4760151,173.43,173.39,10.04451628]
[1752765092042,6.47526915,173.46,173.42,10.04451628]
[1752765092248,5.76526915,173.46,173.44,10.04451628]
[1752765092578,5.76435323,173.48,173.44,10.04451628]
[1752765092734,6.47435323,173.48,173.44,10.04451628]
[1752765092928,5.76376394,173.5,173.47,10.04451628]
[1752765093467,10.04451628,173.53,173.44,0.57656826]
[1752765093468,5.76275689,173.53,173.44,0.57656826]
[1752765093670,10.04451628,173.5,173.45,10.04451628]
[1752765093861,15.80886951,173.48,173.39,0.43]
[1752765094068,10.04451628,173.46,173.41,10.04451628]
[1752765094372,0.71,173.45,173.41,10.04451628]
[1752765094570,0.71,173.44,173.4,10.04451628]
[1752765094862,0.71,173.44,173.41,10.04451628]
[1752765095173,0.71,173.44,173.37,32.36]
[1752765095335,0.71,173.44,173.4,14.223409]
[1752765095764,0.71,173.43,173.4,14.223409]
[1752765095935,5.76634759,173.42,173.37,32.36]
[1752765096136,0.71,173.41,173.37,32.36]
[1752765096565,0.71,173.4,173.37,32.36]
[1752765096778,0.71,173.39,173.36,14.283409]
[1752765097074,14.223409,173.41,173.36,14.283409]
[1752765097239,0.71,173.38,173.36,0.06]
[1752765097640,0.71,173.37,173.36,0.06]
[1752765097856,0.71,173.38,173.36,0.06]
[1752765099361,0.71,173.37,173.36,0.06]
[1752765099853,5.76734529,173.39,173.36,0.06]
[1752765100057,5.76734529,173.39,173.36,14.283409]
[1752765100274,0.71,173.38,173.36,0.06]
[1752765100677,0.68,173.37,173.36,0.06]
[1752765100976,6.4460151,173.43,173.36,14.713409]
[1752765101159,148.1,173.44,173.4,14.223409]
[1752765101496,5.76535024,173.45,173.4,14.223409]
[1752765101656,0.68,173.44,173.4,14.223409]
[1752765101973,6.4460151,173.43,173.39,14.223409]
[1752765102156,0.68,173.42,173.38,14.223409]
[1752765102472,0.68,173.41,173.38,14.223409]
[1752765102651,0.68,173.41,173.39,14.223409]
[1752765103048,5.7660151,173.43,173.39,14.223409]
[1752765103248,6.4460151,173.43,173.39,14.223409]
[1752765103776,6.4460151,173.43,173.36,0.06]
[1752765103973,6.4460151,173.43,173.37,14.223409]
[1752765103974,14.903409,173.42,173.37,14.223409]
[1752765104292,0.68,173.41,173.36,0.06]
[1752765104447,0.68,173.4,173.36,14.283409]
[1752765104647,0.68,173.39,173.36,0.06]
[1752765105275,0.68,173.39,173.36,14.283409]
[1752765105650,0.68,173.39,173.36,0.06]
[1752765105854,5.76767793,173.38,173.36,0.06]
[1752765109164,14.903409,173.37,173.36,0.06]
[1752765109983,42.88594614,173.37,173.24,0.49]
[1752765110283,14.223409,173.33,173.28,14.223409]
[1752765110469,14.903409,173.33,173.28,14.223409]
[1752765110783,14.903409,173.36,173.31,14.223409]
[1752765110990,0.68,173.39,173.35,14.223409]
[1752765111288,14.223409,173.36,173.27,0.49]
[1752765111496,14.223409,173.33,173.28,14.223409]
[1752765111786,0.68,173.33,173.28,14.223409]
[1752765112085,0.68,173.36,173.31,14.223409]
[1752765112289,14.903409,173.35,173.3,46.243409]
[1752765112465,0.68,173.34,173.3,46.243409]
[1752765112791,0.68,173.34,173.3,32.02]
[1752765112999,14.223409,173.35,173.29,32.0]
[1752765113210,19.99108693,173.38,173.33,14.223409]
[1752765113391,14.223409,173.34,173.3,31.98]
[1752765113713,20.18687276,173.38,173.3,31.98]
[1752765113714,14.903409,173.36,173.31,14.223409]
[1752765114003,5.76834333,173.36,173.32,14.223409]
[1752765114196,0.5,173.37,173.33,14.223409]
[1752765114388,0.5,173.37,173.34,14.223409]
[1752765114593,0.5,173.37,173.35,46.183409]
[1752765114782,19.99053574,173.4,173.35,46.183409]
[1752765115098,0.68,173.39,173.35,41.27127896]
[1752765115601,0.68,173.39,173.35,31.96]
[1752765115896,0.68,173.38,173.35,31.94]
[1752765116104,0.68,173.38,173.36,9.31127896]
[1752765116393,0.68,173.37,173.29,8.351]
[1752765116699,5.76771186,173.38,173.34,9.31127896]
[1752765116700,6.44771186,173.38,173.34,9.31127896]
[1752765117195,6.44771186,173.38,173.35,9.31127896]
[1752765117196,5.76771186,173.38,173.35,9.31127896]
[1752765117389,5.76771186,173.38,173.35,41.21127896]
[1752765118003,0.68,173.41,173.37,9.31127896]
[1752765118222,0.68,173.44,173.37,0.49]
[1752765118383,0.68,173.44,173.41,9.31127896]
[1752765118718,0.68,173.43,173.4,9.31127896]
[1752765119170,5.76568265,173.44,173.4,9.31127896]
[1752765119575,0.68,173.43,173.41,9.31127896]
[1752765120096,5.76634759,173.42,173.41,9.31127896]